Workbook

Sheet 2
C1: Приложение 2 к решению Думы Балаганского района "О внесении изменений в решение Думы Балаганского района от 23.12.2022 года №9/2-РД "О бюджете муниципального образования Балаганский район на 2023 год и на плановый период 2024 и 2025 годов" от 08.02.2023г. №1/2-РД
C2: "Приложение 2 к решению Думы Балаганского района "О бюджете муниципального образования Балаганский район на 2023 год и на плановый период 2024 и 2025 годов" от 23.12.2022 г. №9/2-РД
A4: ПРОГНОЗИРУЕМЫЕ ДОХОДЫ БЮДЖЕТА МУНИЦИПАЛЬНОГО ОБРАЗОВАНИЯ БАЛАГАНСКИЙ РАЙОН НА ПЛАНОВЫЙ ПЕРИОД 2024 И 2025 ГОДОВ
E5: тыс. рублей
A6: Наименование | B6: Код бюджетной классификации Российской Федерации | D6: Сумма
D7: 2024г. | E7: 2025г.
A8: 1 | B8: 2 | D8: 3 | E8: 4
A9: НАЛОГОВЫЕ И НЕНАЛОГОВЫЕ ДОХОДЫ | B9: 000 | C9: 10000000000000000 | D9: =D10+D16+D28+D31+D44+D49+D55+D59 -> 56164 | E9: =E10+E16+E28+E31+E44+E49+E55+E59 -> 56273.9
A10: НАЛОГИ НА ПРИБЫЛЬ, ДОХОДЫ | B10: 182 | C10: 10100000000000000 | D10: =D11 -> 39380 | E10: =E11 -> 39385
A11: Налог на доходы физических лиц | B11: 182 | C11: 10102000010000110 | D11: =D12+D13+D14+D15 -> 39380 | E11: =E12+E13+E14+E15 -> 39385
A12: Налог на доходы физических лиц с доходов, источником которых является налоговый агент, за исключением доходов, в отношении которых исчисление и уплата налога осуществляются в соответствии со статьями 227, 227.1 и 228 Налогового кодекса Российской Федерации | B12: 182 | C12: 10102010010000110 | D12: 39060 | E12: 39060
A13: Налог на доходы физических лиц с доходов, полученных от осуществления деятельности физическими лицами, зарегистрированными в качестве индивидуальных предпринимателей, нотариусов, занимающихся частной практикой, адвокатов, учредивших адвокатские кабинеты и других лиц, занимающихся частной практикой в соответствии со статей 227 Налогового кодекса Российской Федерации | B13: 182 | C13: 10102020010000110 | D13: 40 | E13: 40
A14: Налог на доходы физических лиц с доходов, полученных физическими лицами в соответствии со статьей 228 Налогового кодекса Российской Федерации | B14: 182 | C14: 10102030010000110 | D14: 190 | E14: 190
A15: Налог на доходы физических лиц в виде фиксированных авансовых платежей с доходов, полученных физическими лицами, являющимися иностранными гражданами, осуществляющими трудовую деятельность по найму на основании патента в соответствии со статьей 227.1 Налогового кодекса Российской Федерации | B15: 182 | C15: 10102040010000110 | D15: 90 | E15: 95
A16: НАЛОГИ НА СОВОКУПНЫЙ ДОХОД | B16: 182 | C16: 10500000000000000 | D16: =D24+D26+D17 -> 7237 | E16: =E24+E26+E17 -> 7343
A17: Налог, взимаемый в связи с применением упрощенной системы налогообложения | B17: 182 | C17: 10501000000000110 | D17: =D18+D20 -> 4500 | E17: =E18+E20 -> 4500
A18: Налог, взимаемый с налогоплательщиков, выбравших в качестве объекта налогообложения доходы | B18: 182 | C18: 10501010010000110 | D18: =D19 -> 3700 | E18: =E19 -> 3700
A19: Налог, взимаемый с налогоплательщиков, выбравших в качестве объекта налогообложения доходы | B19: 182 | C19: 10501011010000110 | D19: 3700 | E19: 3700
A20: Налог, взимаемый с налогоплательщиков, выбравших в качестве объекта налогообложения доходы, уменьшенные на величину расходов | B20: 182 | C20: 10501020010000110 | D20: =D21 -> 800 | E20: =E21 -> 800
A21: Налог, взимаемый с налогоплательщиков, выбравших в качестве объекта налогообложения доходы, уменьшенные на величину расходов (в том числе минимальный налог, зачисляемый в бюджеты субъектов Российской Федерации) | B21: 182 | C21: 10501021010000110 | D21: 800 | E21: 800
A22: Единый налог на вмененный доход для отдельных видов деятельности | B22: 182 | C22: 10502000020000110 | D22: =D23 -> 0 | E22: =E23 -> 0
A23: Единый налог на вмененный доход для отдельных видов деятельности | B23: 182 | C23: 10502010020000110 | D23: 0 | E23: 0
A24: Налог, взимаемый в связи с применением патентной системы налогообложения | B24: 182 | C24: 10504000020000110 | D24: =D25 -> 2700 | E24: =E25 -> 2800
A25: Налог, взимаемый в связи с применением патентной системы налогообложения, зачисляемый в бюджеты муниципальных районов | B25: 182 | C25: 10504020020000110 | D25: 2700 | E25: 2800
A26: Единый сельскохозяйственный налог | B26: 182 | C26: 10503000010000110 | D26: =D27 -> 37 | E26: =E27 -> 43
A27: Единый сельскохозяйственный налог | B27: 182 | C27: 10503010010000110 | D27: 37 | E27: 43
A28: ГОСУДАРСТВЕННАЯ ПОШЛИНА | B28: 182 | C28: 10800000000000000 | D28: =D29 -> 830.7 | E28: =E29 -> 829.3
A29: Государственная пошлина по делам, рассматриваемым в судах общей юрисдикции, мировыми судьями | B29: 182 | C29: 10803000010000110 | D29: =D30 -> 830.7 | E29: =E30 -> 829.3
A30: Государственная пошлина по делам, рассматриваемым в судах общей юрисдикции, мировыми судьями (за исключением Верховного Суда Российской Федерации) | B30: 182 | C30: 10803010010000110 | D30: 830.7 | E30: 829.3
A31: ДОХОДЫ ОТ ИСПОЛЬЗОВАНИЯ ИМУЩЕСТВА, НАХОДЯЩЕГОСЯ В ГОСУДАРСТВЕННОЙ И МУНИЦИПАЛЬНОЙ СОБСТВЕННОСТИ | B31: 000 | C31: 11100000000000000 | D31: =D32+D39+D41 -> 1559.2 | E31: =E32+E39+E41 -> 1559.2
A32: Доходы, получаемые в виде арендной либо иной платы за передачу в возмездное пользование государственного и муниципального имущества (за исключением имущества бюджетных и автономных учреждений, а также имущества государственных и муниципальных унитарных предприятий, в том числе казенных) | B32: 994 | C32: 11105000000000120 | D32: =D33+D35+D37 -> 1508.5 | E32: =E33+E35+E37 -> 1508.5
A33: Доходы, получаемые в виде арендной платы за земельные участки, государственная собственность на которые не разграничена, а также средства от продажи права на заключение договоров аренды указанных земельных участков | B33: 994 | C33: 11105010000000120 | D33: =D34 -> 1300 | E33: =E34 -> 1300
A34: Доходы, получаемые в виде арендной платы за земельные участки, государственная собственность на которые не разграничена и которые расположены в границах сельских поселений и межселенных территорий муниципальных районов, а также средства от продажи права на заключение договоров аренды указанных земельных участков | B34: 994 | C34: 11105013050000120 | D34: 1300 | E34: 1300
A35: Доходы от сдачи в аренду имущества, находящегося в оперативном управлении органов государственной власти, органов местного самоуправления, органов управления государственными внебюджетными фондами и созданных ими учреждений (за исключением имущества бюджетных и автономных учреждений) | B35: 994 | C35: 11105030000000120 | D35: =D36 -> 126.5 | E35: =E36 -> 126.5
A36: Доходы от сдачи в аренду имущества, находящегося в оперативном управлении органов управления муниципальных районов и созданных ими учреждений (за исключением имущества муниципальных бюджетных и автономных учреждений) | B36: 994 | C36: 11105035050000120 | D36: 126.5 | E36: 126.5
A37: Доходы от сдачи в аренду имущества, составляющего государственную (муниципальную) казну (за исключением земельных участков) | B37: 994 | C37: 11105070000000120 | D37: =D38 -> 82 | E37: =E38 -> 82
A38: Доходы от сдачи в аренду имущества, составляющего казну муниципальных районов (за исключением земельных участков) | B38: 994 | C38: 11105075050000120 | D38: 82 | E38: 82
A39: Платежи от государственных и муниципальных унитарных предприятий | B39: 994 | C39: 11107000000000120 | D39: =D40 -> 35.7 | E39: =E40 -> 35.7
A40: Доходы от перечисления части прибыли, остающейся после уплаты налогов и иных обязательных платежей муниципальных унитарных предприятий, созданных муниципальными районами | B40: 994 | C40: 11107015050000120 | D40: 35.7 | E40: 35.7
A41: Прочие доходы от использования имущества и прав, находящихся в государственной и муниципальной собственности (за исключением имущества бюджетных и автономных учреждений, а также имущества государственных и муниципальных унитарных предприятий, в том числе казенных) | B41: 994 | C41: 11109000000000120 | D41: =D43 -> 15 | E41: =E43 -> 15
A42: Прочие поступления от использования имущества, находящегося в государственной и муниципальной собственности (за исключением имущества бюджетных и автономных учреждений, а также имущества государственных и муниципальных унитарных предприятий, в том числе казенных) | B42: 994 | C42: 11109040000000120 | D42: 15 | E42: 15
A43: Прочие поступления от использования имущества, находящегося в собственности муниципальных районов (за исключением имущества муниципальных бюджетных и автономных учреждений, а также имущества муниципальных унитарных предприятий, в том числе казенных) | B43: 994 | C43: 11109045050000120 | D43: 15 | E43: 15
A44: ПЛАТЕЖИ ПРИ ПОЛЬЗОВАНИИ ПРИРОДНЫМИ РЕСУРСАМИ | B44: 048 | C44: 11200000000000000 | D44: =D45 -> 2.5 | E44: =E45 -> 2.6
A45: Плата за негативное воздействие на окружающую среду | B45: 048 | C45: 11201000010000120 | D45: =SUM(D46:D48) -> 2.5 | E45: =SUM(E46:E48) -> 2.6
A46: Плата за выбросы загрязняющих веществ в атмосферный воздух стационарными объектами | B46: 048 | C46: 11201010010000120 | D46: 2.5 | E46: 2.6
A47: Плата за сбросы загрязняющих веществ в водные объекты | B47: 048 | C47: 11201030010000120 | D47: 0 | E47: 0
A48: Плата за размещение отходов производства | B48: 048 | C48: 11201041010000120 | D48: 0 | E48: 0
A49: ДОХОДЫ ОТ ОКАЗАНИЯ ПЛАТНЫХ УСЛУГ И КОМПЕНСАЦИИ ЗАТРАТ ГОСУДАРСТВА | B49: 000 | C49: 11300000000000000 | D49: =D50 -> 6046.5 | E49: =E50 -> 6046.5
A50: Доходы от оказания платных услуг (работ) | B50: 000 | C50: 11301000000000130 | D50: =D51 -> 6046.5 | E50: =E51 -> 6046.5
A51: Прочие доходы от оказания платных услуг (работ)получателями средств бюджетов муниципальных районов | B51: 000 | C51: 11301995050000130 | D51: =SUM(D52:D54) -> 6046.5 | E51: =SUM(E52:E54) -> 6046.5
A52: Прочие доходы от оказания платных услуг (работ)получателями средств бюджетов муниципальных районов | B52: 957 | C52: 11301995050000130 | D52: 12.8 | E52: 12.8
A53: Прочие доходы от оказания платных услуг (работ) получателями средств бюджетов муниципальных районов | B53: 973 | C53: 11301995050000130 | D53: 5802.6 | E53: 5802.6
A54: Прочие доходы от оказания платных услуг (работ) получателями средств бюджетов муниципальных районов | B54: 994 | C54: 11301995050000130 | D54: 231.1 | E54: 231.1
A55: ДОХОДЫ ОТ ПРОДАЖИ МАТЕРИАЛЬНЫХ И НЕМАТЕРИАЛЬНЫХ АКТИВОВ | B55: 994 | C55: 11400000000000000 | D55: =D56 -> 77 | E55: 77
A56: Доходы от продажи земельных участков, находящихся в государственной и муниципальной собственности | B56: 994 | C56: 11406000000000430 | D56: 77 | E56: 77
A57: Доходы от продажи земельных участков, государственная собственность на которые не разграничена | B57: 994 | C57: 11406010000000430 | D57: 77 | E57: 77
A58: Доходы от продажи земельных участков, государственная собственность на которые не разграничена и которые расположены в границах сельских поселений и межселенных территорий муниципальных районов | B58: 994 | C58: 11406013050000430 | D58: 77 | E58: 77
A59: ШТРАФЫ, САНКЦИИ, ВОЗМЕЩЕНИЕ УЩЕРБА | B59: 000 | C59: 11600000000000000 | D59: =D60+D85+D83+D93 -> 1031.1 | E59: =E60+E85+E83+E93 -> 1031.3
A60: Административные штрафы, установленные Кодексом Российской Федерации об административных правонарушениях | B60: 000 | C60: 11601000010000140 | D60: =D61+D75+D67+D70+D72+D77+D78+D80+D66+D68 -> 180.6 | E60: =E61+E75+E67+E70+E72+E77+E78+E80+E66+E68 -> 180.8
A61: Административные штрафы, установленные Главой 5 Кодекса Российской Федерации об административных правонарушениях, за административные правонарушения, посягающие на права граждан | B61: 000 | C61: 11601050010000140 | D61: =D62+D63 -> 1.9 | E61: =E62+E63 -> 2
A62: Административные штрафы, установленные Главой 5 Кодекса Российской Федерации об административных правонарушениях, за административные правонарушения, посягающие на права граждан, налагаемые мировыми судьями, комиссиями по делам несовершеннолетних и защите их прав | B62: 806 | C62: 11601053010000140 | D62: 1.7 | E62: 1.8
A63: Административные штрафы, установленные Главой 5 Кодекса Российской Федерации об административных правонарушениях, за административные правонарушения, посягающие на права граждан, налагаемые мировыми судьями, комиссиями по делам несовершеннолетних и защите их прав | B63: 837 | C63: 11601053010000140 | D63: 0.2 | E63: 0.2
A64: Административные штрафы, установленные главой 6 Кодекса Российской Федерации об административных правонарушениях, за административные правонарушения, посягающие на здоровье, санитарно-эпидемиологическое благополучие населения и общественную нравственность | B64: 000 | C64: 11601060010000140 | D64: =D65 -> 73.9 | E64: =E65 -> 73.9
A65: Административные штрафы, установленные главой 6 Кодекса Российской Федерации об административных правонарушениях, за административные правонарушения, посягающие на здоровье, санитарно-эпидемиологическое благополучие населения и общественную нравственность, налагаемые мировыми судьями, комиссиями по делам несовершеннолетних и защите их прав | B65: 000 | C65: 11601063010000140 | D65: =D66+D67 -> 73.9 | E65: =E66+E67 -> 73.9
A66: Административные штрафы, установленные главой 6 Кодекса Российской Федерации об административных правонарушениях, за административные правонарушения, посягающие на здоровье, санитарно-эпидемиологическое благополучие населения и общественную нравственность, налагаемые мировыми судьями, комиссиями по делам несовершеннолетних и защите их прав | B66: 806 | C66: 11601063010000140 | D66: 1 | E66: 1
A67: Административные штрафы, установленные главой 6 Кодекса Российской Федерации об административных правонарушениях, за административные правонарушения, посягающие на здоровье, санитарно-эпидемиологическое благополучие населения и общественную нравственность, налагаемые мировыми судьями, комиссиями по делам несовершеннолетних и защите их прав | B67: 837 | C67: 11601063010000140 | D67: 72.9 | E67: 72.9
A68: Административные штрафы, установленные главой 17 Кодекса Российской Федерации об административных правонарушениях, за административные правонарушения, посягающие на институты государственной власти | B68: 837 | C68: 11601170010000140 | D68: =D69 -> 0.9 | E68: =E69 -> 0.9
A69: Административные штрафы, установленные главой 17 Кодекса Российской Федерации об административных правонарушениях, за административные правонарушения, посягающие на институты государственной власти, налагаемые мировыми судьями, комиссиями по делам несовершеннолетних и защите их прав | B69: 837 | C69: 11601173010000140 | D69: 0.9 | E69: 0.9
A70: Административные штрафы, установленные главой 8 Кодекса Российской Федерации об административных правонарушениях, за административные правонарушения в области охраны окружающей среды и природопользования | B70: 837 | C70: 11601080010000140 | D70: =D71 -> 10.3 | E70: =E71 -> 10.3
A71: Административные штрафы, установленные главой 8 Кодекса Российской Федерации об административных правонарушениях, за административные правонарушения в области охраны окружающей среды и природопользования, налагаемые мировыми судьями, комиссиями по делам несовершеннолетних и защите их прав | B71: 837 | C71: 11601083010000140 | D71: 10.3 | E71: 10.3
A72: Административные штрафы, установленные главой 14 Кодекса Российской Федерации об административных правонарушениях, за административные правонарушения в области предпринимательской деятельности и деятельности саморегулируемых организаций | B72: 837 | C72: 11601140010000140 | D72: =D73 -> 0 | E72: =E73 -> 0
A73: Административные штрафы, установленные главой 14 Кодекса Российской Федерации об административных правонарушениях, за административные правонарушения в области предпринимательской деятельности и деятельности саморегулируемых организаций, налагаемые мировыми судьями, комиссиями по делам несовершеннолетних и защите их прав | B73: 837 | C73: 11601143010000140 | D73: 0 | E73: 0
A74: Административные штрафы, установленные Главой 15 Кодекса Российской Федерации об административных правонарушениях, за административные правонарушения в области финансов, налогов и сборов, страхования, рынка ценных бумаг | B74: 837 | C74: 11601150010000140 | D74: =D75 -> 5.8 | E74: =E75 -> 5.8
A75: Административные штрафы, установленные Главой 15 Кодекса Российской Федерации об административных правонарушениях, за административные правонарушения в области финансов, налогов и сборов, страхования, рынка ценных бумаг (за исключением штрафов, указанных в пункте 6 статьи 46 Бюджетного кодекса Российской Федерации), налагаемые мировыми судьями, комиссиями по делам несовершеннолетних и защите их прав | B75: 837 | C75: 11601153010000140 | D75: 5.8 | E75: 5.8
A76: Административные штрафы, установленные главой 17 Кодекса Российской Федерации об административных правонарушениях, за административные правонарушения, посягающие на институты государственной власти | B76: 837 | C76: 11601170010000140 | D76: 2.2 | E76: 2.2
A77: Административные штрафы, установленные главой 17 Кодекса Российской Федерации об административных правонарушениях, за административные правонарушения, посягающие на институты государственной власти, налагаемые мировыми судьями, комиссиями по делам несовершеннолетних и защите их прав | B77: 837 | C77: 11601173010000140 | D77: 2.2 | E77: 2.2
A78: Административные штрафы, установленные Главой 19 Кодекса Российской Федерации об административных правонарушениях, за административные правонарушения против порядка управления | B78: 837 | C78: 11601190010000140 | D78: =D79 -> 51.9 | E78: =E79 -> 51.9
A79: Административные штрафы, установленные Главой 19 Кодекса Российской Федерации об административных правонарушениях, за административные правонарушения против порядка управления, налагаемые мировыми судьями, комиссиями по делам несовершеннолетних и защите их прав | B79: 837 | C79: 11601193010000140 | D79: 51.9 | E79: 51.9
A80: Административные штрафы, установленные Главой 20 Кодекса Российской Федерации об административных правонарушениях, за административные правонарушения, посягающие на общественный порядок и общественную безопасность | B80: 000 | C80: 11601200010000140 | D80: =D81+D82 -> 33.7 | E80: =E81+E82 -> 33.8
A81: Административные штрафы, установленные Главой 20 Кодекса Российской Федерации об административных правонарушениях, за административные правонарушения, посягающие на общественный порядок и общественную безопасность, налагаемые мировыми судьями, комиссиями по делам несовершеннолетних и защите их прав | B81: 837 | C81: 11601203010000140 | D81: 33 | E81: 33
A82: Административные штрафы, установленные Главой 20 Кодекса Российской Федерации об административных правонарушениях, за административные правонарушения, посягающие на общественный порядок и общественную безопасность, налагаемые мировыми судьями, комиссиями по делам несовершеннолетних и защите их прав | B82: 806 | C82: 11601203010000140 | D82: 0.7 | E82: 0.8
A83: Денежные средства, изымаемые в собственность Российской Федерации, субъекта Российской Федерации, муниципального образования в соответствии с решениями судов (за исключением обвинительных приговоров судов) | B83: 994 | C83: 11609000000000140 | D83: =D84 -> 9.1 | E83: =E84 -> 9.1
A84: Денежные средства, изымаемые в собственность муниципального района в соответствии с решениями судов (за исключением обвинительных приговоров судов) | B84: 994 | C84: 11609040050000140 | D84: 9.1 | E84: 9.1
A85: Платежи в целях возмещения причиненного ущерба (убытков) | B85: 000 | C85: 11610000000000140 | D85: =D88+D86 -> 641.4 | E85: =E88+E86 -> 641.4
A86: Платежи по искам о возмещении ущерба, а также платежи, уплачиваемые при добровольном возмещении ущерба, причиненного муниципальному имуществу муниципального района (за исключением имущества, закрепленного за муниципальными бюджетными (автономными) учреждениями, унитарными предприятиями) | B86: 994 | C86: 11610030050000140 | D86: =D87 -> 220.9 | E86: =E87 -> 220.9
A87: Прочее возмещение ущерба, причиненного муниципальному имуществу муниципального района (за исключением имущества, закрепленного за муниципальными бюджетными (автономными) учреждениями, унитарными предприятиями) | B87: 994 | C87: 11610032050000140 | D87: 220.9 | E87: 220.9
A88: Доходы от денежных взысканий (штрафов), поступающие в счет погашения задолженности, образовавшейся до 1 января 2020 года, подлежащие зачислению в бюджеты бюджетной системы Российской Федерации по нормативам, действовавшим в 2019 году | B88: 000 | C88: 11610120000000140 | D88: =D89 -> 420.5 | E88: =E89 -> 420.5
A89: Доходы от денежных взысканий (штрафов), поступающие в счет погашения задолженности, образовавшейся до 1 января 2020 года, подлежащие зачислению в бюджет муниципального образования по нормативам, действовавшим в 2019 году | B89: 000 | C89: 11610123010000140 | D89: =D90+D91+D92 -> 420.5 | E89: =E90+E91+E92 -> 420.5
A90: Доходы от денежных взысканий (штрафов), поступающие в счет погашения задолженности, образовавшейся до 1 января 2020 года, подлежащие зачислению в бюджет муниципального образования по нормативам, действовавшим в 2019 году | B90: 076 | C90: 11610123010000140 | D90: 5.5 | E90: 5.5
A91: Доходы от денежных взысканий (штрафов), поступающие в счет погашения задолженности, образовавшейся до 1 января 2020 года, подлежащие зачислению в бюджет муниципального образования по нормативам, действовавшим в 2019 году | B91: 806 | C91: 11610123010000140 | D91: 0.7 | E91: 0.7
A92: Доходы от денежных взысканий (штрафов), поступающие в счет погашения задолженности, образовавшейся до 1 января 2020 года, подлежащие зачислению в бюджет муниципального образования по нормативам, действовавшим в 2019 году | B92: 994 | C92: 11610123010000140 | D92: 414.3 | E92: 414.3
A93: Платежи, уплачиваемые в целях возмещения вреда | B93: 994 | C93: 11611000010000140 | D93: =D94 -> 200 | E93: =E94 -> 200
A94: Платежи по искам о возмещении вреда, причиненного окружающей среде, а также платежи, уплачиваемые при добровольном возмещении вреда, причиненного окружающей среде (за исключением вреда, причиненного окружающей среде на особо охраняемых природных территориях, а также вреда, причиненного водным объектам), подлежащие зачислению в бюджет муниципального образования | B94: 994 | C94: 11611050010000140 | D94: 200 | E94: 200
A95: БЕЗВОЗМЕЗДНЫЕ ПОСТУПЛЕНИЯ | B95: 000 | C95: 20000000000000000 | D95: =D96 -> 777357.1 | E95: =E96 -> 524939.7
A96: Безвозмездные поступления от других бюджетов бюджетной системы Российской Федерации | B96: 000 | C96: 20200000000000000 | D96: =D97+D112+D100+D122 -> 777357.1 | E96: =E97+E112+E100+E122 -> 524939.7
A97: Дотации бюджетам бюджетной системы Российской Федерации | B97: 992 | C97: 20210000000000150 | D97: =D98 -> 101628.5 | E97: =E98 -> 109733.5
A98: Дотации на выравнивание бюджетной обеспеченности | B98: 992 | C98: 20215001000000150 | D98: =D99 -> 101628.5 | E98: =E99 -> 109733.5
A99: Дотации бюджетам муниципальных районов на выравнивание бюджетной обеспеченности из бюджета субъекта Российской Федерации | B99: 992 | C99: 20215001050000150 | D99: 101628.5 | E99: 109733.5
A100: Субсидии бюджетам бюджетной системы Российской Федерации (межбюджетные субсидии) | B100: 000 | C100: 20220000000000150 | D100: =D107+D101+D103+D105 -> 325193.2 | E100: =E107+E101+E103+E105 -> 64902.2
A101: Субсидии бюджетам на софинансирование капитальных вложений в объекты муниципальной собственности | B101: 994 | C101: 20220077000000150 | D101: =D102 -> 232926.1 | E101: =E102 -> 0
A102: Субсидии бюджетам муниципальных районов на софинансирование капитальных вложений в объекты муниципальной собственности | B102: 994 | C102: 20220077050000150 | D102: 232926.1 | E102: 0
A103: Субсидии бюджетам на организацию бесплатного горячего питания обучающихся, получающих начальное общее образование в государственных и муниципальных образовательных организациях | B103: 973 | C103: 20225304000000150 | D103: =D104 -> 6868.8 | E103: =E104 -> 6692.8
A104: Субсидии бюджетам муниципальных районов на организацию бесплатного горячего питания обучающихся, получающих начальное общее образование в государственных и муниципальных образовательных организациях | B104: 973 | C104: 20225304050000150 | D104: 6868.8 | E104: 6692.8
A105: Субсидии бюджетам на поддержку отрасли культуры | B105: 957 | C105: 20225519000000150 | D105: =D106 -> 92.7 | E105: =E106 -> 92.8
A106: Субсидии бюджетам муниципальных районов на поддержку отрасли культуры | B106: 957 | C106: 20225519050000150 | D106: 92.7 | E106: 92.8
A107: Прочие субсидии | B107: 000 | C107: 20229999000000150 | D107: =D108 -> 85305.6 | E107: =E108 -> 58116.6
A108: Прочие субсидии бюджетам муниципальных районов | B108: 000 | C108: 20229999050000150 | D108: =D109+D110+D111 -> 85305.6 | E108: =E109+E110+E111 -> 58116.6
A109: Прочие субсидии бюджетам муниципальных районов | B109: 973 | C109: 20229999050000150 | D109: 11188.5 | E109: 4276.9
A110: Прочие субсидии бюджетам муниципальных районов | B110: 992 | C110: 20229999050000150 | D110: 29322.4 | E110: 29321.2
A111: Прочие субсидии бюджетам муниципальных районов | B111: 994 | C111: 20229999050000150 | D111: 44794.7 | E111: 24518.5
A112: Субвенции бюджетам бюджетной системы Российской Федерации | B112: 000 | C112: 20230000000000150 | D112: =D115+D121+D113 -> 333685.9 | E112: =E115+E121+E113 -> 333454.5
A113: Субвенции бюджетам на осуществление полномочий по составлению (изменению) списков кандидатов в присяжные заседатели федеральных судов общей юрисдикции в Российской Федерации | B113: 994 | C113: 20235120000000150 | D113: =D114 -> 0.1 | E113: =E114 -> 0.1
A114: Субвенции бюджетам муниципальных районов на осуществление полномочий по составлению (изменению) списков кандидатов в присяжные заседатели федеральных судов общей юрисдикции в Российской Федерации | B114: 994 | C114: 20235120050000150 | D114: 0.1 | E114: 0.1
A115: Субвенции местным бюджетам на выполнение передаваемых полномочий субъектов Российской Федерации | B115: 000 | C115: 20230024000000150 | D115: =D116 -> 48235.5 | E115: =E116 -> 48004.1
A116: Субвенции бюджетам муниципальных районов на выполнение передаваемых полномочий субъектов Российской Федерации | B116: 000 | C116: 20230024050000150 | D116: =D117+D118+D119 -> 48235.5 | E116: =E117+E118+E119 -> 48004.1
A117: Субвенции бюджетам муниципальных районов на выполнение передаваемых полномочий субъектов Российской Федерации | B117: 992 | C117: 20230024050000150 | D117: 38205 | E117: 37973.6
A118: Субвенции бюджетам муниципальных районов на выполнение передаваемых полномочий субъектов Российской Федерации | B118: 973 | C118: 20230024050000150 | D118: 5945.1 | E118: 5945.1
A119: Субвенции бюджетам муниципальных районов на выполнение передаваемых полномочий субъектов Российской Федерации | B119: 994 | C119: 20230024050000150 | D119: 4085.4 | E119: 4085.4
A120: Прочие субвенции | B120: 973 | C120: 20239999000000150 | D120: =D121 -> 285450.3 | E120: =E121 -> 285450.3
A121: Прочие субвенции бюджетам муниципальных районов | B121: 973 | C121: 20239999050000150 | D121: 285450.3 | E121: 285450.3
A122: Иные межбюджетные трансферты | B122: 973 | C122: 20240000000000150 | D122: =D123+D126+D127 -> 16849.5 | E122: =E123+E126+E127 -> 16849.5
A123: Межбюджетные трансферты, передаваемые бюджетам муниципальных образований на осуществление части полномочий по решению вопросов местного значения в соответствии с заключенными соглашениями | B123: 992 | C123: 20240014000000150 | D123: =D124 -> 1898.5 | E123: =E124 -> 1898.5
A124: Межбюджетные трансферты, передаваемые бюджетам муниципальных районов из бюджетов поселений на осуществление части полномочий по решению вопросов местного значения в соответствии с заключенными соглашениями | B124: 992 | C124: 20240014050000150 | D124: 1898.5 | E124: 1898.5
A125: Межбюджетные трансферты, передаваемые бюджетам на проведение мероприятий по обеспечению деятельности советников директора по воспитанию и взаимодействию с детскими общественными объединениями в общеобразовательных организациях | B125: 973 | C125: 20245179000000150 | D125: =D126 -> 1241 | E125: =E126 -> 1241
A126: Межбюджетные трансферты, передаваемые бюджетам муниципальных районов на проведение мероприятий по обеспечению деятельности советников директора по воспитанию и взаимодействию с детскими общественными объединениями в общеобразовательных организациях | B126: 973 | C126: 20245179050000150 | D126: 1241 | E126: 1241
A127: Межбюджетные трансферты, передаваемые бюджетам на ежемесячное денежное вознаграждение за классное руководство педагогическим работникам государственных и муниципальных общеобразовательных организаций | B127: 973 | C127: 20245303000000150 | D127: =D128 -> 13710 | E127: =E128 -> 13710
A128: Межбюджетные трансферты, передаваемые бюджетам муниципальных районов на ежемесячное денежное вознаграждение за классное руководство педагогическим работникам государственных и муниципальных общеобразовательных организаций | B128: 973 | C128: 20245303050000150 | D128: 13710 | E128: 13710
A129: Доходы бюджета - ИТОГО | D129: =D95+D9 -> 833521.1 | E129: =E95+E9 -> 581213.6
E130: "
